[Event "XVI Memorial Lezcano Montalvo 2024"]
[Site "Gran Canaria"]
[Date "2024.03.27"]
[Round "5.33"]
[White "Roca Marrero, Fernando"]
[Black "Broeder, Hans-Gert"]
[Result "1/2-1/2"]
[ECO "D00"]
[WhiteElo "1666"]
[BlackElo "1860"]
[Annotator "NA RC"]
[PlyCount "129"]
[EventDate "2024.03.23"]
[EventType "swiss"]
[EventCountry "ESP"]
[SourceTitle "playchess.com"]
[Source "ChessBase"]
[SourceQuality "1"]
[TimeControl "5400+30"]

1. d4 {[%emt 0:00:07]} d5 {[%emt 0:00:01]} 2. Bf4 {[%emt 0:00:13]} c6 {[%emt 0:00:47]} 3. Nd2 {[%emt 0:01:18]} Qb6 {[%emt 0:01:50]} 4. Nb3 {[%emt 0:00:16]} a5 {[%emt 0:00:39]} 5. a4 {[%emt 0:00:56]} Bf5 {[%emt 0:00:51]} 6. Nf3 {[%emt 0:02:59]} h6 {[%emt 0:00:54]} 7. e3 {[%emt 0:02:29]} Nf6 {[%emt 0:01:43]} 8. Bd3 {[%emt 0:02:15]} Bg4 {[%emt 0:01:08]} 9. O-O {[%emt 0:01:11]} Nbd7 {[%emt 0:04:38]} 10. h3 {[%emt 0:00:06]} Bh5 {[%emt 0:00:51]} 11. Be2 {[%emt 0:01:30]} e6 {[%emt 0:04:22]} 12. Nfd2 {[%emt 0:09:02]} Bg6 {[%emt 0:03:06]} 13. c4 {[%emt 0:00:11]} Be7 {[%emt 0:01:06]} 14. c5 {[%emt 0:00:09]} Qd8 {[%emt 0:01:00]} 15. Rc1 {[%emt 0:01:55]} O-O {[%emt 0:01:09]} 16. Nf3 {[%emt 0:01:17]} Ne4 {[%emt 0:08:42]} 17. Nbd2 {[%emt 0:03:54]} b6 {[%emt 0:01:54]} 18. Nxe4 {[%emt 0:00:40]} dxe4 {[%emt 0:01:10]} 19. Ne5 {[%emt 0:02:29]} Nxe5 {[%emt 0:00:14]} 20. Bxe5 {[%emt 0:04:50]} bxc5 {[%emt 0:05:14]} 21. dxc5 {[%emt 0:00:15]} Qd5 {[%emt 0:00:49]} 22. Bd6 {[%emt 0:17:28]} Bxd6 {[%emt 0:09:37]} 23. cxd6 {[%emt 0:00:58]} Rad8 {[%emt 0:06:22]} 24. Qc2 {[%emt 0:01:34]} Rxd6 {[%emt 0:00:26]} 25. Rfd1 {[%emt 0:00:14]} Qe5 {[%emt 0:00:29]} 26. Rxd6 {[%emt 0:00:13]} Qxd6 {[%emt 0:00:07]} 27. Qxc6 {[%emt 0:00:15]} Qd2 {[%emt 0:00:23]} 28. Qc2 {[%emt 0:12:57]} Rd8 {[%emt 0:01:28]} 29. b3 {[%emt 0:06:14]} Kh7 {[%emt 0:02:23]} 30. Qxd2 {[%emt 0:01:55]} Rxd2 {[%emt 0:00:02]} 31. Kf1 {[%emt 0:00:39]} Rb2 {[%emt 0:02:44]} 32. Bd1 {[%emt 0:02:02]} f5 {[%emt 0:00:51]} 33. g4 {[%emt 0:05:56]} Rd2 {[%emt 0:09:14]} 34. Ke1 {[%emt 0:00:26]} Rd5 {[%emt 0:00:14]} 35. Be2 {[%emt 0:02:48]} Be8 {[%emt 0:00:19]} 36. Bc4 {[%emt 0:00:54]} Rc5 {[%emt 0:02:19]} 37. Rd1 {[%emt 0:01:07]} e5 {[%emt 0:11:31]} 38. Rd5 {[%emt 0:02:55]} Rxd5 {[%emt 0:00:33]} 39. Bxd5 {[%emt 0:00:01]} g6 {[%emt 0:00:14]} 40. Be6 {[%emt 0:01:37]} Kg7 {[%emt 0:05:59]} 41. gxf5 {[%emt 0:00:30]} Kf6 {[%emt 0:00:06]} 42. Bc4 {[%emt 0:02:54]} gxf5 {[%emt 0:00:12]} 43. h4 {[%emt 0:02:11]} Ke7 {[%emt 0:02:44]} 44. Kd2 {[%emt 0:00:22]} Kd6 {[%emt 0:00:39]} 45. Kc3 {[%emt 0:00:29]} Kc5 {[%emt 0:01:21]} 46. Be6 {[%emt 0:00:24]} Bg6 {[%emt 0:00:41]} 47. Bg8 {[%emt 0:00:50]} Be8 {[%emt 0:02:27]} 48. Be6 {[%emt 0:00:19]} Bg6 {[%emt 0:00:02]} 49. Bc4 {[%emt 0:01:41]} Be8 {[%emt 0:00:31]} 50. Bg8 {[%emt 0:00:42]} Bd7 {[%emt 0:01:23]} 51. Bh7 {[%emt 0:00:04]} Be6 {[%emt 0:00:50]} 52. h5 {[%emt 0:00:07]} Bd7 {[%emt 0:00:18]} 53. Bg6 {[%emt 0:00:03]} Be6 {[%emt 0:00:33]} 54. Be8 {[%emt 0:00:28]} Bc8 {[%emt 0:00:10]} 55. Bf7 {[%emt 0:00:10]} Bd7 {[%emt 0:00:04]} 56. Bg6 {[%emt 0:00:27]} Be6 {[%emt 0:00:14]} 57. Be8 {[%emt 0:00:55]} f4 {[%emt 0:02:43]} 58. Bg6 {[%emt 0:00:28]} Bg4 {[%emt 0:00:15]} 59. Bf7 {[%emt 0:03:33]} Bf3 {[%emt 0:00:40]} 60. Be8 {[%emt 0:00:19]} Bd1 {[%emt 0:00:00]} 61. Bg6 {[%emt 0:00:17]} Bf3 {[%emt 0:00:00]} 62. Bf7 {[%emt 0:00:24]} Bg4 {[%emt 0:00:04]} 63. Bg6 {[%emt 0:00:11]} Bf3 {[%emt 0:00:13]} 64. Bf7 {[%emt 0:00:02]} Bg4 {[%emt 0:00:02]} 65. Bg6 {[%emt 0:06:55]} 1/2-1/2

[Event "XVI Memorial Lezcano Montalvo 2024"]
[Site "Gran Canaria"]
[Date "2024.03.27"]
[Round "5.35"]
[White "Rivero Tacoronte, Gabriel"]
[Black "Fernandez Hernandez, Javier"]
[Result "1-0"]
[ECO "B90"]
[WhiteElo "1831"]
[BlackElo "1690"]
[Annotator "NA RC"]
[PlyCount "95"]
[EventDate "2024.03.23"]
[EventType "swiss"]
[EventCountry "ESP"]
[SourceTitle "playchess.com"]
[Source "ChessBase"]
[SourceQuality "1"]
[TimeControl "5400+30"]

1. e4 {[%emt 0:00:02]} c5 {[%emt 0:03:16]} 2. Nf3 {[%emt 0:00:17]} d6 {[%emt 0:00:34]} 3. d4 {[%emt 0:00:07]} cxd4 {[%emt 0:00:06]} 4. Nxd4 {[%emt 0:00:03]} Nf6 {[%emt 0:00:13]} 5. Nc3 {[%emt 0:00:06]} a6 {[%emt 0:00:07]} 6. f3 {[%emt 0:00:09]} Nc6 {[%emt 0:00:38]} 7. Be3 {[%emt 0:01:14]} e5 {[%emt 0:05:27]} 8. Nb3 {[%emt 0:00:10]} Be6 {[%emt 0:00:16]} 9. Qd2 {[%emt 0:01:23]} Be7 {[%emt 0:00:14]} 10. O-O-O {[%emt 0:00:50]} O-O {[%emt 0:00:38]} 11. g4 {[%emt 0:01:22]} b5 {[%emt 0:04:27]} 12. g5 {[%emt 0:02:56]} Nd7 {[%emt 0:00:06]} 13. Nd5 {[%emt 0:04:46]} Bxd5 {[%emt 0:02:07]} 14. exd5 {[%emt 0:00:34]} Ncb8 {[%emt 0:10:28]} 15. h4 {[%emt 0:15:51]} a5 {[%emt 0:05:58]} 16. Bxb5 {[%emt 0:12:39]} a4 {[%emt 0:00:37]} 17. Na1 {[%emt 0:00:09]} Nb6 {[%emt 0:11:59]} 18. c4 {[%emt 0:02:52]} Qc7 {[%emt 0:00:56]} 19. Qc3 {[%emt 0:07:25]} Rc8 {[%emt 0:01:28]} 20. b3 {[%emt 0:00:45]} axb3 {[%emt 0:01:35]} 21. axb3 {[%emt 0:00:10]} Qb7 {[%emt 0:03:12]} 22. Kb2 {[%emt 0:10:41]} Rxc4 {[%emt 0:10:07]} 23. Qd3 {[%emt 0:13:21]} Rb4 {[%emt 0:05:35]} 24. Nc2 {[%emt 0:12:49]} Rxb5 {[%emt 0:00:13]} 25. Qxb5 {[%emt 0:00:29]} Na4+ {[%emt 0:00:08]} 26. bxa4 {[%emt 0:00:15]} Qc8 {[%emt 0:01:12]} 27. Nb4 {[%emt 0:02:15]} Nd7 {[%emt 0:03:09]} 28. Rc1 {[%emt 0:01:24]} Nc5 {[%emt 0:00:24]} 29. Nc6 {[%emt 0:01:34]} Bf8 {[%emt 0:00:05]} 30. Bxc5 {[%emt 0:00:46]} dxc5 {[%emt 0:00:06]} 31. Ka1 {[%emt 0:01:27]} Qf5 {[%emt 0:00:16]} 32. Qb3 {[%emt 0:01:47]} g6 {[%emt 0:00:44]} 33. Rhd1 {[%emt 0:00:46]} e4 {[%emt 0:00:22]} 34. fxe4 {[%emt 0:01:13]} Qxe4 {[%emt 0:00:08]} 35. a5 {[%emt 0:01:08]} Bg7+ {[%emt 0:01:01]} 36. Ka2 {[%emt 0:00:07]} Qe2+ {[%emt 0:00:05]} 37. Ka3 {[%emt 0:00:52]} Qa6 {[%emt 0:02:20]} 38. Qc4 {[%emt 0:01:49]} Qb7 {[%emt 0:00:21]} 39. Rb1 {[%emt 0:00:25]} Qd7 {[%emt 0:00:31]} 40. Rb8+ {[%emt 0:01:10]} Rxb8 {[%emt 0:00:17]} 41. Nxb8 {[%emt 0:00:02]} Qb7 {[%emt 0:00:42]} 42. Qb3 {[%emt 0:00:08]} Qa8 {[%emt 0:01:18]} 43. Qb6 {[%emt 0:00:48]} Bf8 {[%emt 0:00:18]} 44. Kb3 {[%emt 0:00:52]} h6 {[%emt 0:01:37]} 45. Kc4 {[%emt 0:00:23]} hxg5 {[%emt 0:00:05]} 46. hxg5 {[%emt 0:00:06]} Be7 {[%emt 0:00:24]} 47. Rg1 {[%emt 0:01:26]} Kg7 {[%emt 0:02:01]} 48. a6 {[%emt 0:02:37]} 1-0

[Event "XVI Memorial Lezcano Montalvo 2024"]
[Site "Gran Canaria"]
[Date "2024.03.27"]
[Round "5.36"]
[White "Rivero Reyes, Alejandro"]
[Black "Lorenzo Merino, Hector"]
[Result "0-1"]
[ECO "B07"]
[WhiteElo "1799"]
[BlackElo "1586"]
[Annotator "NA RC"]
[PlyCount "124"]
[EventDate "2024.03.23"]
[EventType "swiss"]
[EventCountry "ESP"]
[SourceTitle "playchess.com"]
[Source "ChessBase"]
[SourceQuality "1"]
[TimeControl "5400+30"]

1. e4 {[%emt 0:00:06]} d6 {[%emt 0:04:06]} 2. d4 {[%emt 0:00:09]} Nf6 {[%emt 1:27:24]} 3. Nc3 {[%emt 0:00:22]} g6 {[%emt 0:00:00]} 4. Be3 {[%emt 0:00:26]} c6 {[%emt 0:00:00]} 5. Qd2 {[%emt 0:02:08]} b5 {[%emt 0:00:00]} 6. f3 {[%emt 0:02:54]} Nbd7 {[%emt 0:00:00]} 7. O-O-O {[%emt 0:17:41]} Qa5 {[%emt 0:00:00]} 8. Kb1 {[%emt 0:00:15]} Nb6 {[%emt 0:00:00]} 9. e5 {[%emt 0:05:41]} dxe5 {[%emt 0:00:00]} 10. dxe5 {[%emt 0:00:45]} Nfd5 {[%emt 0:00:00]} 11. Nxd5 {[%emt 0:07:22]} Qxd2 {[%emt 0:00:00]} 12. Bxd2 {[%emt 0:01:43]} Nxd5 {[%emt 0:00:00]} 13. c4 {[%emt 0:00:14]} bxc4 {[%emt 0:00:00]} 14. Bxc4 {[%emt 0:00:26]} a5 {[%emt 0:00:00]} 15. f4 {[%emt 0:04:40]} Bf5+ {[%emt 0:00:00]} 16. Ka1 {[%emt 0:01:13]} Nb4 {[%emt 0:00:00]} 17. b3 {[%emt 0:09:28]} Nd3 {[%emt 0:00:00]} 18. Be3 {[%emt 0:08:47]} Nb4 {[%emt 0:00:00]} 19. Kb2 {[%emt 0:03:28]} a4 {[%emt 0:00:00]} 20. a3 {[%emt 0:05:57]} Nd5 {[%emt 0:00:00]} 21. Bxd5 {[%emt 0:05:04]} cxd5 {[%emt 0:00:00]} 22. bxa4 {[%emt 0:00:49]} e6 {[%emt 0:00:00]} 23. Nf3 {[%emt 0:03:58]} Rxa4 {[%emt 0:00:00]} 24. Ra1 {[%emt 0:00:25]} Be7 {[%emt 0:00:00]} 25. Rhc1 {[%emt 0:03:35]} O-O {[%emt 0:00:00]} 26. Rc7 {[%emt 0:02:59]} Rb8+ {[%emt 0:00:00]} 27. Kc3 {[%emt 0:00:21]} Bd8 {[%emt 0:00:00]} 28. Ra7 {[%emt 0:03:55]} Ba5+ {[%emt 0:00:00]} 29. Rxa5 {[%emt 0:00:31]} Rxa5 {[%emt 0:00:00]} 30. Ra2 {[%emt 0:01:53]} Rab5 {[%emt 0:00:00]} 31. Nd4 {[%emt 0:00:32]} Rc5+ {[%emt 0:00:00]} 32. Kd2 {[%emt 0:00:03]} Be4 {[%emt 0:00:00]} 33. Nxe6 {[%emt 0:02:04]} Rc2+ {[%emt 0:00:00]} 34. Rxc2 {[%emt 0:00:32]} Bxc2 {[%emt 0:00:00]} 35. Kxc2 {[%emt 0:02:16]} fxe6 {[%emt 0:00:00]} 36. Kc3 {[%emt 0:00:53]} Kf7 {[%emt 0:00:00]} 37. Bc5 {[%emt 0:00:15]} Ke8 {[%emt 0:00:00]} 38. a4 {[%emt 0:01:58]} Kd7 {[%emt 0:00:00]} 39. a5 {[%emt 0:00:20]} Rb5 {[%emt 0:00:00]} 40. Bb6 {[%emt 0:01:06]} Kc6 {[%emt 0:00:00]} 41. Kd3 {[%emt 0:00:34]} Rb2 {[%emt 0:00:32]} 42. g3 {[%emt 0:02:34]} Rxh2 {[%emt 0:00:13]} 43. Ke3 {[%emt 0:00:33]} Rb2 {[%emt 0:00:51]} 44. Bd8 {[%emt 0:00:41]} Rb8 {[%emt 0:00:00]} 45. Bb6 {[%emt 0:00:27]} Rxb6 {[%emt 0:00:00]} 46. axb6 {[%emt 0:00:02]} Kxb6 {[%emt 0:00:00]} 47. g4 {[%emt 0:01:20]} Kc6 {[%emt 0:01:20]} 48. f5 {[%emt 0:00:30]} gxf5 {[%emt 0:00:15]} 49. gxf5 {[%emt 0:00:04]} exf5 {[%emt 0:00:17]} 50. Kf4 {[%emt 0:00:48]} Kd7 {[%emt 0:04:13]} 51. Kxf5 {[%emt 0:00:16]} Ke7 {[%emt 0:00:11]} 52. e6 {[%emt 0:00:33]} h5 {[%emt 0:17:08]} 53. Kg5 {[%emt 0:00:47]} d4 {[%emt 0:00:00]} 54. Kf4 {[%emt 0:00:20]} h4 {[%emt 0:00:00]} 55. Kf3 {[%emt 0:00:31]} Kxe6 {[%emt 0:00:00]} 56. Kg2 {[%emt 0:00:31]} Ke5 {[%emt 0:00:00]} 57. Kf2 {[%emt 0:00:14]} Ke4 {[%emt 0:00:00]} 58. Ke2 {[%emt 0:00:14]} d3+ {[%emt 0:00:00]} 59. Kf2 {[%emt 0:00:09]} h3 {[%emt 0:00:00]} 60. Kg1 {[%emt 0:00:21]} d2 {[%emt 0:00:00]} 61. Kh2 {[%emt 0:00:39]} d1=Q {[%emt 0:00:00]} 62. Kxh3 {[%emt 0:00:08]} Qg1 {[%emt 0:00:00]} 0-1

[Event "XVI Memorial Lezcano Montalvo 2024"]
[Site "Gran Canaria"]
[Date "2024.03.27"]
[Round "5.37"]
[White "Gonzalez Perdomo, Sergio"]
[Black "Leandro Tejera, Damian"]
[Result "1-0"]
[ECO "B76"]
[WhiteElo "1792"]
[BlackElo "1483"]
[Annotator "NA RC"]
[PlyCount "45"]
[EventDate "2024.03.23"]
[EventType "swiss"]
[EventCountry "ESP"]
[SourceTitle "playchess.com"]
[Source "ChessBase"]
[SourceQuality "1"]
[TimeControl "5400+30"]

1. e4 {[%emt 0:00:30]} c5 {[%emt 0:14:15]} 2. Nf3 {[%emt 0:00:04]} d6 {[%emt 0:00:29]} 3. d4 {[%emt 0:00:09]} cxd4 {[%emt 0:00:08]} 4. Nxd4 {[%emt 0:00:02]} Nf6 {[%emt 0:00:07]} 5. Nc3 {[%emt 0:00:11]} g6 {[%emt 0:00:07]} 6. Be3 {[%emt 0:00:52]} Bg7 {[%emt 0:00:10]} 7. f3 {[%emt 0:00:13]} O-O {[%emt 0:00:55]} 8. Bc4 {[%emt 0:00:33]} a6 {[%emt 0:00:14]} 9. Qd2 {[%emt 0:01:12]} e5 {[%emt 1:18:35]} 10. Nb3 {[%emt 0:00:28]} b5 {[%emt 0:00:00]} 11. Bd5 {[%emt 0:00:20]} Nxd5 {[%emt 0:00:00]} 12. Qxd5 {[%emt 0:01:33]} Ra7 {[%emt 0:00:00]} 13. Bxa7 {[%emt 0:00:11]} Qd7 {[%emt 0:00:00]} 14. Bxb8 {[%emt 0:00:41]} Bb7 {[%emt 0:00:00]} 15. Qxd6 {[%emt 0:00:48]} Qxd6 {[%emt 0:00:00]} 16. Bxd6 {[%emt 0:00:02]} Rd8 {[%emt 0:00:00]} 17. O-O-O {[%emt 0:00:16]} Bc8 {[%emt 0:00:00]} 18. Bc7 {[%emt 0:00:13]} Re8 {[%emt 0:00:00]} 19. Rd8 {[%emt 0:00:10]} Rxd8 {[%emt 0:00:00]} 20. Bxd8 {[%emt 0:00:02]} Be6 {[%emt 0:00:00]} 21. Nd5 {[%emt 0:00:14]} f5 {[%emt 0:00:00]} 22. Nc5 {[%emt 0:00:14]} h5 {[%emt 0:00:00]} 23. Nxe6 {[%emt 1:33:02]} 1-0

[Event "XVI Memorial Lezcano Montalvo 2024"]
[Site "Gran Canaria"]
[Date "2024.03.27"]
[Round "5.38"]
[White "Illana Elorduy, Jesus Eusebio"]
[Black "Rossello Padron, Carlos"]
[Result "1/2-1/2"]
[ECO "A58"]
[WhiteElo "1623"]
[BlackElo "1792"]
[Annotator "NA RC"]
[PlyCount "99"]
[EventDate "2024.03.23"]
[EventType "swiss"]
[EventCountry "ESP"]
[SourceTitle "playchess.com"]
[Source "ChessBase"]
[SourceQuality "1"]
[TimeControl "5400+30"]

1. d4 {[%emt 0:00:02]} Nf6 {[%emt 0:00:29]} 2. c4 {[%emt 0:00:10]} c5 {[%emt 0:00:09]} 3. d5 {[%emt 0:00:25]} b5 {[%emt 0:00:54]} 4. cxb5 {[%emt 0:00:47]} a6 {[%emt 0:00:09]} 5. bxa6 {[%emt 0:00:33]} Bxa6 {[%emt 0:00:11]} 6. Nc3 {[%emt 0:01:26]} g6 {[%emt 0:01:13]} 7. g3 {[%emt 0:00:43]} Bg7 {[%emt 0:00:38]} 8. Bg2 {[%emt 0:01:10]} d6 {[%emt 0:00:13]} 9. e4 {[%emt 0:03:22]} Nbd7 {[%emt 0:00:13]} 10. Nge2 {[%emt 0:00:59]} O-O {[%emt 0:01:26]} 11. O-O {[%emt 0:02:12]} Qb6 {[%emt 0:04:46]} 12. Qc2 {[%emt 0:01:41]} Ne5 {[%emt 0:00:58]} 13. Rd1 {[%emt 0:02:54]} Nfg4 {[%emt 0:02:24]} 14. Na4 {[%emt 0:03:22]} Qa7 {[%emt 0:01:39]} 15. Nec3 {[%emt 0:00:23]} c4 {[%emt 0:02:32]} 16. h3 {[%emt 0:03:47]} Nf6 {[%emt 0:03:59]} 17. Be3 {[%emt 0:02:51]} Qb7 {[%emt 0:01:34]} 18. f4 {[%emt 0:07:59]} Nd3 {[%emt 0:00:14]} 19. e5 {[%emt 0:01:01]} Ne8 {[%emt 0:02:22]} 20. e6 {[%emt 0:03:02]} Nf6 {[%emt 0:01:54]} 21. Kh2 {[%emt 0:04:30]} Rab8 {[%emt 0:01:13]} 22. Nb6 {[%emt 0:01:05]} Qc7 {[%emt 0:00:46]} 23. Nca4 {[%emt 0:01:11]} Bb5 {[%emt 0:00:22]} 24. Rxd3 {[%emt 0:02:34]} Bxa4 {[%emt 0:03:34]} 25. Nxa4 {[%emt 0:00:36]} Qa5 {[%emt 0:01:58]} 26. Ra3 {[%emt 0:00:57]} Nxd5 {[%emt 0:00:48]} 27. exf7+ {[%emt 0:01:24]} Rxf7 {[%emt 0:00:11]} 28. Bxd5 {[%emt 0:00:35]} Qxd5 {[%emt 0:00:19]} 29. Rd1 {[%emt 0:01:43]} Qb5 {[%emt 0:03:14]} 30. Bd4 {[%emt 0:02:51]} e5 {[%emt 0:00:28]} 31. Bc3 {[%emt 0:01:05]} exf4 {[%emt 0:01:36]} 32. Bxg7 {[%emt 0:00:57]} fxg3+ {[%emt 0:00:11]} 33. Rxg3 {[%emt 0:00:27]} Kxg7 {[%emt 0:00:33]} 34. b3 {[%emt 0:02:08]} cxb3 {[%emt 0:01:56]} 35. axb3 {[%emt 0:01:39]} Rbf8 {[%emt 0:02:44]} 36. Qc3+ {[%emt 0:00:43]} Kg8 {[%emt 0:00:12]} 37. Rd2 {[%emt 0:01:19]} Qf1 {[%emt 0:02:51]} 38. Rdg2 {[%emt 0:01:04]} Rf6 {[%emt 0:02:43]} 39. Qc4+ {[%emt 0:00:30]} Kg7 {[%emt 0:03:12]} 40. Qxf1 {[%emt 0:00:02]} Rxf1 {[%emt 0:00:20]} 41. Nc3 {[%emt 0:02:46]} Rc1 {[%emt 0:00:50]} 42. Rd3 {[%emt 0:01:09]} Rff1 {[%emt 0:00:38]} 43. Ne4 {[%emt 0:01:28]} h5 {[%emt 0:02:25]} 44. Nxd6 {[%emt 0:01:53]} h4 {[%emt 0:01:31]} 45. Rgd2 {[%emt 0:07:22]} Rce1 {[%emt 0:03:20]} 46. Nc4 {[%emt 0:03:13]} Rh1+ {[%emt 0:00:44]} 47. Kg2 {[%emt 0:00:36]} Ref1 {[%emt 0:00:21]} 48. Rd7+ {[%emt 0:04:59]} Kh6 {[%emt 0:00:17]} 49. Ne3 {[%emt 0:01:15]} Rhg1+ {[%emt 0:00:53]} 50. Kh2 {[%emt 0:00:03]} 1/2-1/2

[Event "XVI Memorial Lezcano Montalvo 2024"]
[Site "Gran Canaria"]
[Date "2024.03.27"]
[Round "5.41"]
[White "Matos Guedes, Silverio"]
[Black "Sanchez Montesdeoca, Isaac"]
[Result "0-1"]
[ECO "B34"]
[WhiteElo "1675"]
[BlackElo "1832"]
[Annotator "NA RC"]
[PlyCount "110"]
[EventDate "2024.03.23"]
[EventType "swiss"]
[EventCountry "ESP"]
[SourceTitle "playchess.com"]
[Source "ChessBase"]
[SourceQuality "1"]
[TimeControl "5400+30"]

1. e4 {[%emt 0:01:51]} c5 {[%emt 0:00:12]} 2. Nf3 {[%emt 0:00:23]} g6 {[%emt 0:00:11]} 3. d4 {[%emt 0:00:22]} cxd4 {[%emt 0:00:12]} 4. Nxd4 {[%emt 0:00:05]} Nc6 {[%emt 0:00:14]} 5. Nc3 {[%emt 0:00:15]} Nf6 {[%emt 0:00:29]} 6. Nxc6 {[%emt 0:00:19]} dxc6 {[%emt 0:00:15]} 7. Qxd8+ {[%emt 0:00:07]} Kxd8 {[%emt 0:00:13]} 8. Bg5 {[%emt 0:00:05]} Be6 {[%emt 0:03:57]} 9. O-O-O+ {[%emt 0:00:53]} Ke8 {[%emt 0:00:59]} 10. f3 {[%emt 0:01:19]} Bg7 {[%emt 0:00:35]} 11. Bd3 {[%emt 0:01:25]} Nd7 {[%emt 0:00:41]} 12. f4 {[%emt 0:00:43]} Bxc3 {[%emt 0:01:23]} 13. bxc3 {[%emt 0:00:30]} f6 {[%emt 0:01:08]} 14. Bh4 {[%emt 0:00:10]} Bxa2 {[%emt 0:02:22]} 15. c4 {[%emt 0:00:31]} Nb6 {[%emt 0:00:59]} 16. c5 {[%emt 0:03:55]} Nc4 {[%emt 0:00:34]} 17. Bxc4 {[%emt 0:01:27]} Bxc4 {[%emt 0:00:14]} 18. Rd4 {[%emt 0:00:46]} Be6 {[%emt 0:01:19]} 19. Rhd1 {[%emt 0:00:17]} Kf7 {[%emt 0:03:00]} 20. h3 {[%emt 0:01:08]} h5 {[%emt 0:00:12]} 21. Kb2 {[%emt 0:01:02]} Rhb8 {[%emt 0:01:53]} 22. Bg3 {[%emt 0:02:08]} Rc8 {[%emt 0:00:28]} 23. c3 {[%emt 0:06:16]} b6 {[%emt 0:00:58]} 24. cxb6 {[%emt 0:01:07]} axb6 {[%emt 0:00:11]} 25. Ra1 {[%emt 0:00:06]} Rxa1 {[%emt 0:00:16]} 26. Kxa1 {[%emt 0:00:34]} Ra8+ {[%emt 0:00:09]} 27. Kb1 {[%emt 0:03:58]} c5 {[%emt 0:00:43]} 28. Rd3 {[%emt 0:01:17]} Ra2 {[%emt 0:00:38]} 29. Re3 {[%emt 0:06:37]} Rxg2 {[%emt 0:00:28]} 30. h4 {[%emt 0:00:47]} Bb3 {[%emt 0:02:07]} 31. e5 {[%emt 0:00:47]} f5 {[%emt 0:03:26]} 32. Be1 {[%emt 0:01:27]} Bc4 {[%emt 0:00:28]} 33. Bg3 {[%emt 0:10:25]} e6 {[%emt 0:00:37]} 34. Be1 {[%emt 0:02:39]} Ke7 {[%emt 0:00:21]} 35. Rg3 {[%emt 0:01:24]} Rxg3 {[%emt 0:00:17]} 36. Bxg3 {[%emt 0:00:20]} Kd7 {[%emt 0:00:09]} 37. Kc2 {[%emt 0:00:25]} Kc6 {[%emt 0:00:10]} 38. Kd2 {[%emt 0:00:48]} Kd5 {[%emt 0:00:34]} 39. Ke3 {[%emt 0:00:35]} Bf1 {[%emt 0:00:24]} 40. Be1 {[%emt 0:00:24]} Kc4 {[%emt 0:00:52]} 41. Kd2 {[%emt 0:02:45]} Bg2 {[%emt 0:00:29]} 42. Ke3 {[%emt 0:01:42]} Bh1 {[%emt 0:00:51]} 43. Kd2 {[%emt 0:00:30]} Be4 {[%emt 0:01:24]} 44. Ke3 {[%emt 0:00:30]} b5 {[%emt 0:00:54]} 45. Bd2 {[%emt 0:04:21]} Kb3 {[%emt 0:03:27]} 46. Be1 {[%emt 0:01:38]} Kc2 {[%emt 0:05:26]} 47. Ke2 {[%emt 0:07:37]} Bd3+ {[%emt 0:00:36]} 48. Ke3 {[%emt 0:00:36]} Bc4 {[%emt 0:00:28]} 49. Kf3 {[%emt 0:04:43]} Kd3 {[%emt 0:03:00]} 50. Kg3 {[%emt 0:00:37]} Bd5 {[%emt 0:01:18]} 51. Kf2 {[%emt 0:01:51]} c4 {[%emt 0:00:31]} 52. Kf1 {[%emt 0:02:02]} b4 {[%emt 0:00:16]} 53. cxb4 {[%emt 0:02:19]} c3 {[%emt 0:00:12]} 54. Bxc3 {[%emt 0:02:43]} Kxc3 {[%emt 0:00:16]} 55. Ke2 {[%emt 0:00:03]} Kc2 {[%emt 1:04:34]} 0-1

[Event "XVI Memorial Lezcano Montalvo 2024"]
[Site "Gran Canaria"]
[Date "2024.03.27"]
[Round "5.42"]
[White "Yuan, Yingjie"]
[Black "Parra Erazo, Santiago"]
[Result "1-0"]
[ECO "A16"]
[WhiteElo "1771"]
[BlackElo "1439"]
[Annotator "NA RC"]
[PlyCount "71"]
[EventDate "2024.03.23"]
[EventType "swiss"]
[EventCountry "ESP"]
[SourceTitle "playchess.com"]
[Source "ChessBase"]
[SourceQuality "1"]
[TimeControl "5400+30"]

1. c4 {[%emt 0:00:07]} Nf6 {[%emt 0:00:34]} 2. Nc3 {[%emt 0:00:13]} Nc6 {[%emt 0:00:11]} 3. g3 {[%emt 0:00:08]} d6 {[%emt 0:00:42]} 4. Bg2 {[%emt 0:00:10]} g6 {[%emt 0:00:18]} 5. Rb1 {[%emt 0:02:10]} Bg7 {[%emt 0:01:10]} 6. b4 {[%emt 0:00:52]} O-O {[%emt 0:00:24]} 7. Nf3 {[%emt 0:02:55]} Bg4 {[%emt 0:00:37]} 8. h3 {[%emt 1:27:55]} Bxf3 {[%emt 1:30:34]} 9. Bxf3 {[%emt 0:00:30]} Rb8 {[%emt 0:00:30]} 10. O-O {[%emt 0:00:30]} Ne5 {[%emt 0:00:30]} 11. Bg2 {[%emt 0:00:30]} Nxc4 {[%emt 0:00:30]} 12. b5 {[%emt 0:00:30]} a6 {[%emt 0:00:30]} 13. Qa4 {[%emt 0:00:30]} axb5 {[%emt 0:00:30]} 14. Qxb5 {[%emt 0:00:00]} Nb6 {[%emt 0:00:30]} 15. a4 {[%emt 0:01:00]} Qd7 {[%emt 0:00:30]} 16. a5 {[%emt 0:00:30]} Qxb5 {[%emt 0:00:00]} 17. Rxb5 {[%emt 0:00:30]} Nbd7 {[%emt 0:01:00]} 18. Bxb7 {[%emt 0:00:30]} Nc5 {[%emt 0:00:30]} 19. Bc6 {[%emt 0:00:30]} Rxb5 {[%emt 0:00:00]} 20. Nxb5 {[%emt 0:00:30]} e5 {[%emt 0:01:00]} 21. Ba3 {[%emt 0:00:30]} Nfe4 {[%emt 0:00:30]} 22. Rd1 {[%emt 0:00:30]} f5 {[%emt 0:00:30]} 23. d3 {[%emt 0:00:00]} Ng5 {[%emt 0:00:30]} 24. Bxc5 {[%emt 0:01:00]} dxc5 {[%emt 0:00:30]} 25. a6 {[%emt 0:00:00]} Ne6 {[%emt 0:00:30]} 26. Bd5 {[%emt 0:00:00]} Re8 {[%emt 0:00:00]} 27. Nxc7 {[%emt 0:01:30]} Kf7 {[%emt 0:00:00]} 28. Nxe8 {[%emt 0:00:30]} Kxe8 {[%emt 0:00:00]} 29. Bxe6 {[%emt 0:00:00]} Ke7 {[%emt 0:00:00]} 30. a7 {[%emt 0:00:00]} Kxe6 {[%emt 0:00:00]} 31. a8=Q {[%emt 0:00:00]} Kf6 {[%emt 0:00:00]} 32. Qd8+ {[%emt 0:00:00]} Kf7 {[%emt 0:00:00]} 33. Ra1 {[%emt 0:00:00]} Ke6 {[%emt 0:04:00]} 34. Ra6+ {[%emt 0:00:00]} Kf7 {[%emt 0:00:00]} 35. Ra7+ {[%emt 0:00:00]} Ke6 {[%emt 0:00:00]} 36. Qd7+ {[%emt 0:00:00]} 1-0